fUST/lending_fUST_20260515
["ID","MTS","AMOUNT","RATE_DAILY","PERIOD"]
[422273386,1778779838000,-871.46258921,5.846e-05,2]
[422273388,1778779838000,-300.0,5.945e-05,2]
[422273390,1778779838000,-1187.0,5.945e-05,2]
[422273397,1778779838000,-300.0,6.064e-05,2]
[422273400,1778779838000,-300.0,6.064e-05,2]
[422273398,1778779838000,-300.0,6.064e-05,2]
[422273395,1778779838000,-1144.00519748,5.946e-05,2]
[422273404,1778779838000,-300.0,6.064e-05,2]
[422273405,1778779838000,-300.0,6.064e-05,2]
[422273407,1778779838000,-300.0,6.064e-05,2]
[422273403,1778779838000,-300.0,6.064e-05,2]
[422273406,1778779838000,-300.0,6.064e-05,2]
[422273402,1778779838000,-300.0,6.064e-05,2]
[422273399,1778779838000,-300.0,6.064e-05,2]
[422273409,1778779838000,-300.0,6.064e-05,2]
[422273408,1778779838000,-300.0,6.064e-05,2]
[422273401,1778779838000,-300.0,6.064e-05,2]
[422273444,1778779839000,-272.79009297,7.899e-05,2]
[422273445,1778779839000,-500.0,7.899e-05,2]
[422273447,1778779839000,-439.06521334,7.899e-05,2]
[422273449,1778779839000,-468.72116678,7.899e-05,2]
[422273438,1778779839000,-279.33230713,7.899e-05,2]
[422273451,1778779839000,-531.11219105,7.899e-05,2]
[422273441,1778779839000,-500.0,7.899e-05,2]
[422273448,1778779839000,-500.0,7.899e-05,2]
[422273434,1778779839000,-500.0,7.899e-05,2]
[422273452,1778779839000,-500.0,7.899e-05,2]
[422273442,1778779839000,-205.27528512,7.899e-05,2]
[422273456,1778779839000,-500.0,7.899e-05,2]
[422273446,1778779839000,-500.0,7.899e-05,2]
[422273454,1778779839000,-500.0,7.899e-05,2]
[422273437,1778779839000,-500.0,7.899e-05,2]
[422273466,1778779839000,-500.0,7.899e-05,2]
[422273464,1778779839000,-500.0,7.899e-05,2]
[422273453,1778779839000,-500.0,7.899e-05,2]
[422273465,1778779839000,-500.0,7.899e-05,2]
[422273455,1778779839000,-500.0,7.899e-05,2]
[422273457,1778779839000,-500.0,7.899e-05,2]
[422273459,1778779839000,-500.0,7.899e-05,2]
[422273458,1778779839000,-500.0,7.899e-05,2]
[422273443,1778779839000,-500.0,7.899e-05,2]
[422273436,1778779839000,-500.0,7.899e-05,2]
[422273429,1778779839000,-451.30733719,7.714e-05,2]
[422273440,1778779839000,-500.0,7.899e-05,2]
[422273411,1778779839000,-300.0,6.064e-05,2]
[422273412,1778779839000,-300.0,6.064e-05,2]
[422273415,1778779839000,-4093.43573809,6.105e-05,2]
[422273413,1778779839000,-5699.47785578,6.064e-05,2]
[422273414,1778779839000,-151.0,6.078e-05,2]
[422273417,1778779839000,-151.0,6.14e-05,2]
[422273427,1778779839000,-864.0,7.483e-05,2]
[422273416,1778779839000,-151.0,6.14e-05,2]
[422273426,1778779839000,-4947.50838602,7.211e-05,2]
[422273421,1778779839000,-420.0,6.54e-05,2]
[422273425,1778779839000,-587.0,7.193e-05,2]
[422273435,1778779839000,-500.0,7.899e-05,2]
[422273423,1778779839000,-4661.77845692,6.842e-05,2]
[422273418,1778779839000,-600.0,6.184e-05,2]
[422273419,1778779839000,-1.0,6.285e-05,7]
[422273424,1778779839000,-165.595106,7.027e-05,2]
[422273422,1778779839000,-720.0,6.803e-05,2]
[422273430,1778779839000,-250.68062882,7.867e-05,2]
[422273428,1778779839000,-5231.77209437,7.579e-05,2]
[422273432,1778779839000,-500.0,7.899e-05,2]
[422273433,1778779839000,-500.0,7.899e-05,2]
[422273431,1778779839000,-500.0,7.899e-05,2]
[422273463,1778779839000,-500.0,7.899e-05,2]
[422273439,1778779839000,-500.0,7.899e-05,2]
[422273420,1778779839000,-152.0,6.287e-05,7]
[422273462,1778779839000,-500.0,7.899e-05,2]
[422273450,1778779839000,-500.0,7.899e-05,2]
[422273460,1778779839000,-500.0,7.899e-05,2]
[422273498,1778779839000,-180.43500871,8.346e-05,2]
[422273496,1778779839000,-295.57555563,8.286e-05,2]
[422273499,1778779839000,-500.0,8.493e-05,2]
[422273495,1778779839000,-1000.0,8.231e-05,2]
[422273497,1778779839000,-5732.06996736,8.316e-05,2]
[422273500,1778779839000,-3800.0,8.6e-05,2]
[422273501,1778779839000,-295.57555563,8.659e-05,2]
[422273508,1778779839000,-1000.0,9.054e-05,2]
[422273502,1778779839000,-300.0,8.704e-05,2]
[422273507,1778779839000,-500.0,9.041e-05,2]
[422273504,1778779839000,-151.0,8.99e-05,2]
[422273494,1778779839000,-500.0,8.219e-05,2]
[422273506,1778779839000,-295.57555563,9.031e-05,2]
[422273509,1778779839000,-244.0,9.054e-05,2]
[422273510,1778779839000,-313.621,9.16e-05,2]
[422273505,1778779839000,-190.28370787,9.002e-05,2]
[422273517,1778779839000,-500.0,9.298e-05,2]
[422273512,1778779839000,-2202.0,9.17e-05,2]
[422273511,1778779839000,-647.0,9.17e-05,2]
[422273513,1778779839000,-1412.0,9.17e-05,2]
[422273461,1778779839000,-500.0,7.899e-05,2]
[422273518,1778779839000,-1321076.85717033,9.304e-05,2]
[422273516,1778779839000,-443.0,9.17e-05,2]
[422273515,1778779839000,-185.0,9.17e-05,2]
[422273503,1778779839000,-500.0,8.767e-05,2]
[422273493,1778779839000,-9599.24563763,8e-05,2]
[422273514,1778779839000,-741.0,9.17e-05,2]
[422273490,1778779839000,-295.57555567,7.913e-05,2]
[422273491,1778779839000,-823.0,7.913e-05,2]
[422273468,1778779839000,-500.0,7.899e-05,2]
[422273467,1778779839000,-500.0,7.899e-05,2]
[422273469,1778779839000,-500.0,7.899e-05,2]
[422273473,1778779839000,-500.0,7.899e-05,2]
[422273472,1778779839000,-500.0,7.899e-05,2]
[422273477,1778779839000,-500.0,7.899e-05,2]
[422273470,1778779839000,-500.0,7.899e-05,2]
[422273475,1778779839000,-500.0,7.899e-05,2]
[422273476,1778779839000,-500.0,7.899e-05,2]
[422273471,1778779839000,-500.0,7.899e-05,2]
[422273474,1778779839000,-582.94054718,7.899e-05,2]
[422273478,1778779839000,-500.0,7.899e-05,2]
[422273481,1778779839000,-500.0,7.899e-05,2]
[422273479,1778779839000,-500.0,7.899e-05,2]
[422273483,1778779839000,-500.0,7.899e-05,2]
[422273482,1778779839000,-500.0,7.899e-05,2]
[422273484,1778779839000,-500.0,7.899e-05,2]
[422273489,1778779839000,-375551.0895417,7.9e-05,2]
[422273486,1778779839000,-200.0,7.899e-05,2]
[422273485,1778779839000,-500.0,7.899e-05,2]
[422273487,1778779839000,-172547.45337699,7.9e-05,2]
[422273480,1778779839000,-500.0,7.899e-05,2]
[422273488,1778779839000,-60685.53051027,7.9e-05,2]
[422273492,1778779839000,-5340.04696133,7.948e-05,2]
[422273545,1778779840000,-151.0,9.8e-05,2]
[422273553,1778779840000,-760464.32816594,9.9e-05,2]
[422273542,1778779840000,-693.3919763,9.789e-05,2]
[422273551,1778779840000,-745.65223616,9.899e-05,2]
[422273546,1778779840000,-151.0,9.8e-05,2]
[422273548,1778779840000,-152.0,9.828e-05,2]
[422273549,1778779840000,-719.04747942,9.844e-05,2]
[422273547,1778779840000,-151.0,9.8e-05,2]
[422273550,1778779840000,-500.0,9.863e-05,2]
[422273552,1778779840000,-286.56824213,9.9e-05,2]
[422273558,1778779840000,-1000.0,9.96e-05,2]
[422273555,1778779840000,-160.0,9.909e-05,2]
[422273556,1778779840000,-160.0,9.909e-05,2]
[422273557,1778779840000,-773.2413689,9.954e-05,2]
[422273565,1778779840000,-160.0,0.0001,2]
[422273560,1778779840000,-4821.30263494,0.0001,2]
[422273559,1778779840000,-492.0,9.96e-05,2]
[422273562,1778779840000,-160.0,0.0001,2]
[422273561,1778779840000,-2000.42309901,0.0001,3]
[422273544,1778779840000,-399999.99999965,9.8e-05,2]
[422273554,1778779840000,-161.64793294,9.909e-05,2]
[422273543,1778779840000,-8902.18777789,9.79e-05,2]
[422273527,1778779840000,-5000.0,9.436e-05,2]
[422273540,1778779840000,-520.15082931,9.714e-05,2]
[422273563,1778779840000,-160.0,0.0001,2]
[422273521,1778779840000,-162.380719,9.404e-05,2]
[422273523,1778779840000,-112151.08797497,9.405e-05,2]
[422273519,1778779840000,-500.0,9.315e-05,2]
[422273520,1778779840000,-295.57555563,9.404e-05,2]
[422273522,1778779840000,-537.6845,9.404e-05,2]
[422273524,1778779840000,-152.0,9.405e-05,2]
[422273525,1778779840000,-5011.11058552,9.436e-05,2]
[422273528,1778779840000,-5000.0,9.436e-05,2]
[422273541,1778779840000,-668.65185757,9.734e-05,2]
[422273526,1778779840000,-5000.0,9.436e-05,2]
[422273531,1778779840000,-325.805033,9.473e-05,2]
[422273532,1778779840000,-578.20924308,9.514e-05,2]
[422273537,1778779840000,-644.79446246,9.679e-05,2]
[422273533,1778779840000,-599.60298507,9.569e-05,2]
[422273536,1778779840000,-621.78829552,9.624e-05,2]
[422273535,1778779840000,-2659.35114017,9.592e-05,2]
[422273534,1778779840000,-500.0,9.589e-05,2]
[422273538,1778779840000,-151.0,9.699e-05,2]
[422273539,1778779840000,-1953.73734245,9.702e-05,2]
[422273530,1778779840000,-557.5788265,9.459e-05,2]
[422273566,1778779840000,-160.0,0.0001,2]
[422273594,1778779840000,-160.0,0.00010144,2]
[422273568,1778779840000,-169.78716403,0.0001,8]
[422273593,1778779840000,-500.0,0.00010137,2]
[422273596,1778779840000,-892.041489,0.00010144,2]
[422273629,1778779840000,-5000.0,0.00010249,2]
[422273595,1778779840000,-526.020744,0.00010144,2]
[422273597,1778779840000,-152.0,0.00010152,30]
[422273603,1778779840000,-160.0,0.00010192,2]
[422273604,1778779840000,-955.095058,0.00010192,2]
[422273605,1778779840000,-1750.190116,0.00010192,2]
[422273600,1778779840000,-9176.69521216,0.00010159,2]
[422273591,1778779840000,-3357.142872,0.00010135,2]
[422273602,1778779840000,-170.483663,0.00010192,2]
[422273606,1778779840000,-160.0,0.000102,2]
[422273609,1778779840000,-160.0,0.000102,2]
[422273611,1778779840000,-8960.09049477,0.000102,2]
[422273614,1778779840000,-5626.34818576,0.000102,2]
[422273616,1778779840000,-927.27566595,0.00010229,2]
[422273619,1778779840000,-5000.0,0.00010249,2]
[422273621,1778779840000,-5000.0,0.00010249,2]
[422273624,1778779840000,-5000.0,0.00010249,2]
[422273626,1778779840000,-5000.0,0.00010249,2]
[422273601,1778779840000,-894.19061326,0.00010174,2]
[422273592,1778779840000,-6554.285745,0.00010135,2]
[422273567,1778779840000,-5106.58,0.0001,2]
[422273580,1778779840000,-151.0,0.00010028,2]
[422273581,1778779840000,-236.513923,0.00010044,2]
[422273571,1778779840000,-8960.09049477,0.0001,2]
[422273572,1778779840000,-5626.34818576,0.0001,2]
[422273569,1778779840000,-300269.771465,0.0001,2]
[422273577,1778779840000,-151.0,0.0001,2]
[422273570,1778779840000,-300.3677428,0.0001,2]
[422273574,1778779840000,-3359.79718444,0.0001,2]
[422273573,1778779840000,-33903.09974213,0.0001,2]
[422273575,1778779840000,-332.95590098,0.0001,2]
[422273579,1778779840000,-801.85129955,0.00010009,2]
[422273576,1778779840000,-151.0,0.0001,2]
[422273578,1778779840000,-151.0,0.0001,2]
[422273587,1778779840000,-862.28603014,0.00010119,2]
[422273582,1778779840000,-831.51979763,0.00010064,2]
[422273583,1778779840000,-8960.09049477,0.000101,2]
[422273584,1778779840000,-5626.34818576,0.000101,2]
[422273585,1778779840000,-151.0,0.000101,2]
[422273590,1778779840000,-160.0,0.00010135,2]
[422273589,1778779840000,-152.0,0.00010133,30]
[422273588,1778779840000,-152.0,0.00010133,30]
[422273586,1778779840000,-151.0,0.000101,2]
[422273663,1778779841000,-490.413286,0.00010326,2]
[422273674,1778779841000,-10625.371638,0.00010433,2]
[422273673,1778779841000,-160.0,0.00010433,2]
[422273672,1778779841000,-5027.44645223,0.00010424,2]
[422273665,1778779841000,-160.0,0.00010341,2]
[422273669,1778779841000,-160.0,0.00010397,2]
[422273671,1778779841000,-5626.34818576,0.000104,2]
[422273667,1778779841000,-1713.21867,0.00010341,2]
[422273670,1778779841000,-8960.09049477,0.000104,2]
[422273660,1778779841000,-325.206643,0.00010326,2]
[422273635,1778779841000,-1488.350467,0.0001029,2]
[422273655,1778779841000,-312.55338,0.00010318,2]
[422273650,1778779841000,-151.0,0.000103,2]
[422273653,1778779841000,-155.197138,0.000103,2]
[422273647,1778779841000,-151.0,0.000103,2]
[422273645,1778779841000,-5626.34818576,0.000103,2]
[422273642,1778779841000,-8960.09049477,0.000103,2]
[422273632,1778779841000,-160.0,0.0001029,2]
[422273640,1778779841000,-400.12046972,0.000103,2]
[422273637,1778779841000,-2816.700935,0.0001029,2]
[422273675,1778779841000,-21090.743276,0.00010433,2]
[422273658,1778779841000,-160.0,0.00010326,2]
[422273676,1778779841000,-8960.09049477,0.000105,2]
[422273668,1778779841000,-3266.43734,0.00010341,2]
[422273679,1778779841000,-160.0,0.000106,2]
[422273698,1778779841000,-38614.99999999,0.000108,2]
[422273699,1778779841000,-3902.85882493,0.000108,2]
[422273697,1778779841000,-26014.78676839,0.000108,2]
[422273696,1778779841000,-1393.27389609,0.00010789,4]
[422273693,1778779841000,-1302.402352,0.00010702,2]
[422273695,1778779841000,-154.02,0.00010786,2]
[422273691,1778779841000,-78.68298857,0.000107,2]
[422273694,1778779841000,-153.74,0.00010736,2]
[422273692,1778779841000,-151.0,0.000107,2]
[422273690,1778779841000,-5547.66519719,0.000107,2]
[422273678,1778779841000,-760.37369663,0.00010576,2]
[422273687,1778779841000,-153.36,0.00010681,2]
[422273689,1778779841000,-8960.09049477,0.000107,2]
[422273685,1778779841000,-3051.948066,0.00010641,2]
[422273686,1778779841000,-478.200677,0.00010652,2]
[422273683,1778779841000,-8221.06091492,0.00010637,2]
[422273680,1778779841000,-160.0,0.000106,2]
[422273700,1778779841000,-1986.490239,0.000108,2]
[422273684,1778779841000,-2241.63484508,0.00010637,2]
[422273682,1778779841000,-5626.34818576,0.000106,2]
[422273681,1778779841000,-8960.09049477,0.000106,2]
[422273677,1778779841000,-5626.34818576,0.000105,2]
[422273688,1778779841000,-153.44,0.00010699,2]
[422273757,1778779844000,-1126.90394658,9.702e-05,2]
[422273764,1778779844000,-175.58761505,9.702e-05,2]
[422273765,1778779844000,-2324.0897386,0.000108,2]
[422273770,1778779844000,-9061.34134447,0.000108,2]
[422273769,1778779844000,-3402.83085448,0.000108,2]
[422273771,1778779844000,-1900.28465855,0.000108,2]
[422273766,1778779844000,-4653.67113488,0.000108,2]
[422273772,1778779846000,152.0,6.284e-05,7]
[422273790,1778779847000,-2000.0,0.00010802,2]
[422273791,1778779847000,-2000.0,0.00010802,2]
[422273793,1778779847000,-2000.0,0.00010802,2]
[422273792,1778779847000,-2000.0,0.00010802,2]
[422273794,1778779847000,-2000.0,0.00010802,2]
[422273796,1778779847000,-2000.0,0.00010802,2]
[422273798,1778779847000,-2000.0,0.00010802,2]
[422273799,1778779847000,-2000.0,0.00010802,2]
[422273803,1778779847000,-1950.0,0.00010803,2]
[422273802,1778779847000,-1950.0,0.00010803,2]
[422273795,1778779847000,-2000.0,0.00010802,2]
[422273788,1778779847000,-2000.0,0.00010802,2]
[422273786,1778779847000,-2000.0,0.00010802,2]
[422273785,1778779847000,-5626.34818576,0.000108,2]
[422273784,1778779847000,-8960.09049477,0.000108,2]
[422273783,1778779847000,-163.11061413,0.000108,2]
[422273782,1778779847000,-163.0,0.000108,2]
[422273781,1778779847000,-9843.62699946,0.000108,2]
[422273780,1778779847000,-27932.08612468,0.000108,2]
[422273779,1778779847000,-1105.14200979,0.000108,2]
[422273778,1778779847000,-8263.88612473,0.000108,2]
[422273797,1778779847000,-2000.0,0.00010802,2]
[422273777,1778779847000,-1302.49156163,0.00010584,2]
[422273774,1778779847000,152.0,6.284e-05,7]
[422273787,1778779847000,-2000.0,0.00010802,2]
[422273801,1778779847000,-1950.0,0.00010803,2]
[422273776,1778779847000,-152.0,9.169e-05,2]
[422273805,1778779847000,-1950.0,0.00010803,2]
[422273800,1778779847000,-156.0,0.00010802,2]
[422273825,1778779847000,-154.75,0.00010853,2]
[422273823,1778779847000,-443.463604,0.00010843,2]
[422273829,1778779847000,-4846.99774552,0.00010896,2]
[422273819,1778779847000,-1550.0,0.00010805,2]
[422273824,1778779847000,-154.19,0.00010848,2]
[422273821,1778779847000,-1550.0,0.00010805,2]
[422273828,1778779847000,-1680.0,0.00010867,2]
[422273822,1778779847000,-1312.0,0.00010805,2]
[422273827,1778779847000,-1557.471518,0.00010859,2]
[422273826,1778779847000,-957.283529,0.00010859,2]
[422273820,1778779847000,-1550.0,0.00010805,2]
[422273811,1778779847000,-1353.045879,0.00010805,2]
[422273789,1778779847000,-2000.0,0.00010802,2]
[422273817,1778779847000,-1550.0,0.00010805,2]
[422273804,1778779847000,-1950.0,0.00010803,2]
[422273810,1778779847000,-1710.0,0.00010803,2]
[422273814,1778779847000,-399.89233689,0.00010805,2]
[422273808,1778779847000,-1950.0,0.00010803,2]
[422273815,1778779847000,-1550.0,0.00010805,2]
[422273806,1778779847000,-1950.0,0.00010803,2]
[422273813,1778779847000,-1150.10766311,0.00010805,2]
[422273812,1778779847000,-1550.0,0.00010805,2]
[422273818,1778779847000,-1550.0,0.00010805,2]
[422273816,1778779847000,-1550.0,0.00010805,2]
[422273809,1778779847000,-1950.0,0.00010803,2]
[422273807,1778779847000,-1950.0,0.00010803,2]
[422273833,1778780810000,8866.47201387,0.00012,120]
[422273858,1778781033000,-300.0,8.87e-05,2]
[422273856,1778781033000,-300.0,8.87e-05,2]
[422273860,1778781033000,-246.20813466,9.358e-05,2]
[422273861,1778781033000,-1165.79186534,9.358e-05,2]
[422273867,1778781033000,-300.0,9.544e-05,2]
[422273859,1778781033000,-300.0,8.87e-05,2]
[422273877,1778781033000,-300.0,9.544e-05,2]
[422273857,1778781033000,-300.0,8.87e-05,2]
[422273862,1778781033000,-647.0,9.358e-05,2]
[422273864,1778781033000,-443.0,9.358e-05,2]
[422273847,1778781033000,-5000.0,6.122e-05,2]
[422273853,1778781033000,-434.70427348,8.092e-05,2]
[422273855,1778781033000,-173.7012865,8.606e-05,2]
[422273854,1778781033000,-220.02525333,8.097e-05,2]
[422273852,1778781033000,-200.0,6.359e-05,7]
[422273849,1778781033000,-152.0,6.284e-05,7]
[422273866,1778781033000,-206.21555552,9.485e-05,2]
[422273848,1778781033000,-210.25280879,6.184e-05,2]
[422273850,1778781033000,-1200.0,6.358e-05,2]
[422273851,1778781033000,-200.0,6.359e-05,2]
[422273846,1778781033000,-368.3934521,6.092e-05,2]
[422273865,1778781033000,-2202.0,9.358e-05,2]
[422273868,1778781033000,-300.0,9.544e-05,2]
[422273845,1778781033000,-1889.87835919,6.061e-05,2]
[422273876,1778781033000,-300.0,9.544e-05,2]
[422273873,1778781033000,-300.0,9.544e-05,2]
[422273894,1778781033000,-352.45274648,0.000101,2]
[422273893,1778781033000,-501.01509486,0.00010092,2]
[422273888,1778781033000,-250.897,9.994e-05,2]
[422273885,1778781033000,-420.0,9.757e-05,2]
[422273884,1778781033000,-423.90036559,9.68e-05,2]
[422273880,1778781033000,-5000.0,9.653e-05,2]
[422273887,1778781033000,-160.0,9.822e-05,2]
[422273890,1778781033000,-473.6497219,0.0001,2]
[422273881,1778781033000,-5000.0,9.653e-05,2]
[422273891,1778781033000,-500.0,0.0001002,2]
[422273892,1778781033000,-161.64793294,0.00010039,2]
[422273886,1778781033000,-160.0,9.822e-05,2]
[422273882,1778781033000,-5000.0,9.653e-05,2]
[422273883,1778781033000,-5000.0,9.653e-05,2]
[422273879,1778781033000,-7043.02042664,9.653e-05,2]
[422273878,1778781033000,-537.6845,9.625e-05,2]
[422273872,1778781033000,-300.0,9.544e-05,2]
[422273870,1778781033000,-300.0,9.544e-05,2]
[422273871,1778781033000,-300.0,9.544e-05,2]
[422273875,1778781033000,-300.0,9.544e-05,2]
[422273874,1778781033000,-300.0,9.544e-05,2]
[422273869,1778781033000,-300.0,9.544e-05,2]
[422273889,1778781033000,-10626.40062439,0.0001,2]
[422273938,1778781046000,-10273.94787791,0.000101,2]
[422273939,1778781046000,-152.0,0.00010152,30]
[422273937,1778781046000,-152.0,6.286e-05,7]
[422273940,1778781046000,-3632.02825208,0.000102,2]
[422273968,1778781655000,-1229.59583805,5.669e-05,2]
[422274065,1778782238000,-647.0,8.999e-05,2]
[422274059,1778782238000,-410.84630176,7.528e-05,2]
[422274067,1778782238000,-185.0,8.999e-05,2]
[422274063,1778782238000,-1408.246,8.999e-05,2]
[422274064,1778782238000,-2202.0,8.999e-05,2]
[422274062,1778782238000,-1090.60842035,7.6e-05,2]
[422274057,1778782238000,-152.0,6.286e-05,7]
[422274052,1778782238000,-5000.0,5.391e-05,2]
[422274056,1778782238000,-420.0,6.076e-05,2]
[422274060,1778782238000,-6686.24396223,7.6e-05,2]
[422274055,1778782238000,-210.25280879,5.961e-05,2]
[422274054,1778782238000,-348.174832,5.528e-05,2]
[422274053,1778782238000,-300.0,5.524e-05,2]
[422274050,1778782238000,-5000.0,5.337e-05,2]
[422274051,1778782238000,-1200.0,5.39e-05,2]
[422274066,1778782238000,-741.0,8.999e-05,2]
[422274058,1778782238000,-587.0,6.684e-05,2]
[422274069,1778782238000,-570.06824138,9.164e-05,2]
[422274068,1778782238000,-443.0,8.999e-05,2]
[422274072,1778782238000,-464.08797116,9.5e-05,2]
[422274071,1778782238000,-15790.8531185,9.305e-05,2]
[422274088,1778782238000,-5870.07113308,0.000102,2]
[422274087,1778782238000,-645.07881028,0.00010119,2]
[422274086,1778782238000,-9200.55773675,0.000101,2]
[422274083,1778782238000,-3742.72317846,0.0001,2]
[422274085,1778782238000,-500.0,0.00010086,2]
[422274082,1778782238000,-341.72657286,0.0001,2]
[422274078,1778782238000,-9200.55773675,0.0001,2]
[422274084,1778782238000,-4270.0,0.0001,2]
[422274080,1778782238000,-496.43987476,0.0001,2]
[422274079,1778782238000,-808.75,0.0001,2]
[422274075,1778782238000,-160.0,9.82e-05,2]
[422274077,1778782238000,-161.64793294,9.82e-05,2]
[422274074,1778782238000,-274.634,9.589e-05,2]
[422274081,1778782238000,-2382.92700293,0.0001,2]
[422274073,1778782238000,-473.51777152,9.528e-05,2]
[422274076,1778782238000,-160.0,9.82e-05,2]
[422274070,1778782238000,-435.3573672,9.305e-05,2]
[422274120,1778782243000,-557.18407237,0.00010098,2]
[422274119,1778782243000,-575.41076325,0.00010098,2]
[422274133,1778782246000,-7000.0,0.000103,2]
[422274132,1778782246000,-1946.99191554,0.000103,2]
[422274131,1778782246000,-3123.4876061,0.000102,2]
[422274129,1778782246000,-97.00100243,0.00010098,2]
[422274130,1778782246000,-206.99899757,0.000102,2]
[422274200,1778783432000,-338.712,6.155e-05,2]
[422274201,1778783432000,-904.23498059,6.155e-05,2]
[422274202,1778783432000,-562.06919728,6.217e-05,2]
[422274243,1778783441000,-196.34995771,6.28e-05,2]
[422274258,1778783441000,-300.0,6.811e-05,2]
[422274260,1778783441000,-300.0,6.811e-05,2]
[422274263,1778783441000,-300.0,6.811e-05,2]
[422274261,1778783441000,-300.0,6.811e-05,2]
[422274262,1778783441000,-300.0,6.811e-05,2]
[422274265,1778783441000,-300.0,6.811e-05,2]
[422274256,1778783441000,-300.0,6.811e-05,2]
[422274254,1778783441000,-300.0,6.811e-05,2]
[422274257,1778783441000,-300.0,6.811e-05,2]
[422274255,1778783441000,-300.0,6.811e-05,2]
[422274252,1778783441000,-300.0,6.811e-05,2]
[422274249,1778783441000,-1200.0,6.678e-05,2]
[422274245,1778783441000,-300.0,6.678e-05,2]
[422274250,1778783441000,-5000.0,6.679e-05,2]
[422274246,1778783441000,-300.0,6.678e-05,2]
[422274253,1778783441000,-300.0,6.811e-05,2]
[422274248,1778783441000,-300.0,6.678e-05,2]
[422274247,1778783441000,-300.0,6.678e-05,2]
[422274264,1778783441000,-300.0,6.811e-05,2]
[422274242,1778783441000,-4437.93080272,6.217e-05,2]
[422274251,1778783441000,-338.44567481,6.747e-05,2]
[422274244,1778783441000,-152.0,6.286e-05,7]
[422274259,1778783441000,-300.0,6.811e-05,2]
[422274277,1778783441000,-823.0,8.888e-05,2]
[422274267,1778783441000,-420.0,7.346e-05,2]
[422274288,1778783441000,-161.64793294,9.816e-05,2]
[422274287,1778783441000,-219.707,9.624e-05,2]
[422274281,1778783441000,-706.7997562,9.261e-05,2]
[422274280,1778783441000,-864.0,9.258e-05,2]
[422274289,1778783441000,-160.0,9.816e-05,2]
[422274282,1778783441000,-180.578,9.463e-05,2]
[422274284,1778783441000,-741.0,9.463e-05,2]
[422274285,1778783441000,-185.0,9.463e-05,2]
[422274279,1778783441000,-3385.605735,9.143e-05,2]
[422274283,1778783441000,-2202.0,9.463e-05,2]
[422274286,1778783441000,-447.118,9.463e-05,2]
[422274274,1778783441000,-720.0,8.416e-05,2]
[422274278,1778783441000,-326.5180254,9.143e-05,2]
[422274266,1778783441000,-300.0,6.811e-05,2]
[422274272,1778783441000,-600.0,7.651e-05,2]
[422274276,1778783441000,-399.36589627,8.747e-05,2]
[422274268,1778783441000,-1680.0,7.346e-05,2]
[422274269,1778783441000,-200.0,7.494e-05,2]
[422274271,1778783441000,-31025.1060747,7.502e-05,2]
[422274270,1778783441000,-300.0,7.501e-05,2]
[422274275,1778783441000,-313.77659821,8.599e-05,2]
[422274273,1778783441000,-587.0,8.08e-05,2]
[422274304,1778783442000,-500.0,0.00010395,2]
[422274299,1778783442000,-500.0,0.00010395,2]
[422274316,1778783442000,-500.0,0.00010399,2]
[422274315,1778783442000,-500.0,0.00010399,2]
[422274305,1778783442000,-412.46517135,0.00010395,2]
[422274297,1778783442000,-5545.69122417,0.000103,2]
[422274298,1778783442000,-100000.0,0.00010394,2]
[422274301,1778783442000,-325.71547518,0.00010395,2]
[422274300,1778783442000,-500.0,0.00010395,2]
[422274291,1778783442000,-5545.69122417,0.0001,2]
[422274294,1778783442000,-500.0,0.000101,2]
[422274296,1778783442000,-5545.69122417,0.000102,2]
[422274293,1778783442000,-5545.69122417,0.000101,2]
[422274303,1778783442000,-500.0,0.00010395,2]
[422274302,1778783442000,-500.0,0.00010395,2]
[422274292,1778783442000,-500.0,0.00010082,2]
[422274290,1778783442000,-160.0,9.816e-05,2]
[422274310,1778783442000,-359.55914657,0.00010399,2]
[422274295,1778783442000,-1000.0,0.00010183,2]
[422274306,1778783442000,-163.19124075,0.00010395,2]